[Event "Early-Titled-Tuesday-Blitz-May-07-2024"]
[Site "Chess.com"]
[Date "2024.05.07"]
[Round "4"]
[White "imdvb6307"]
[Black "HanSchut"]
[Result "1-0"]
[WhiteElo "2540"]
[BlackElo "2354"]
[TimeControl "180+1"]
[EndTime "8:42:29 PDT"]
[Termination "imdvb6307 won by resignation"]

1. d4 {[%clk 0:03:00.9]} 1... Nf6 {[%clk 0:02:58.7]} 2. Nf3 {[%clk 0:03:00.4]}
2... g6 {[%clk 0:02:59.1]} 3. c4 {[%clk 0:03:00]} 3... Bg7 {[%clk 0:02:59.5]} 4.
Nc3 {[%clk 0:03:00.3]} 4... d5 {[%clk 0:03:00.1]} 5. Bf4 {[%clk 0:03:00.1]} 5...
O-O {[%clk 0:02:59.2]} 6. Rc1 {[%clk 0:03:00.6]} 6... dxc4 {[%clk 0:02:54.8]} 7.
e3 {[%clk 0:02:58.2]} 7... c5 {[%clk 0:02:54.5]} 8. dxc5 {[%clk 0:02:55.4]} 8...
Qa5 {[%clk 0:02:53.9]} 9. Bxc4 {[%clk 0:02:54.7]} 9... Qxc5 {[%clk 0:02:53.7]}
10. Bb3 {[%clk 0:02:54.9]} 10... Nc6 {[%clk 0:02:46.6]} 11. O-O {[%clk
0:02:51.5]} 11... Qh5 {[%clk 0:02:41.5]} 12. h3 {[%clk 0:02:37.8]} 12... e5
{[%clk 0:02:15.9]} 13. Bg5 {[%clk 0:01:33.9]} 13... e4 {[%clk 0:01:55.2]} 14.
Bxf6 {[%clk 0:01:32.1]} 14... exf3 {[%clk 0:01:54.8]} 15. Bxg7 {[%clk
0:01:29.9]} 15... fxg2 {[%clk 0:01:55]} 16. Qxh5 {[%clk 0:01:28.8]} 16...
gxf1=Q+ {[%clk 0:01:55.1]} 17. Rxf1 {[%clk 0:01:27.9]} 17... gxh5 {[%clk
0:01:53.1]} 18. Bxf8 {[%clk 0:01:28]} 18... Kxf8 {[%clk 0:01:54]} 19. Kh2 {[%clk
0:01:25.5]} 19... Be6 {[%clk 0:01:37.1]} 20. Bxe6 {[%clk 0:01:21.9]} 20... fxe6
{[%clk 0:01:38]} 21. f4 {[%clk 0:01:22.2]} 21... Rd8 {[%clk 0:01:32.4]} 22. Kg3
{[%clk 0:01:13.7]} 22... Rd3 {[%clk 0:01:19.8]} 23. Kf3 {[%clk 0:01:12.7]} 23...
Ke7 {[%clk 0:00:58.1]} 24. Rf2 {[%clk 0:01:12.5]} 24... Na5 {[%clk 0:00:51.1]}
25. Ke4 {[%clk 0:01:11.7]} 25... Rd7 {[%clk 0:00:41.2]} 26. Rg2 {[%clk
0:01:11.3]} 26... Kf6 {[%clk 0:00:37.5]} 27. b3 {[%clk 0:01:04.2]} 27... Nc6
{[%clk 0:00:35.9]} 28. Rg5 {[%clk 0:00:42.5]} 28... Nb4 {[%clk 0:00:14]} 29.
Rxh5 {[%clk 0:00:41]} 29... Nd3 {[%clk 0:00:14.1]} 30. Ne2 {[%clk 0:00:30.7]}
30... b6 {[%clk 0:00:12.1]} 31. Nd4 {[%clk 0:00:30.7]} 31... Nc5+ {[%clk
0:00:11.3]} 32. Kf3 {[%clk 0:00:30.9]} 32... Kg6 {[%clk 0:00:11.3]} 33. Re5
{[%clk 0:00:29.4]} 33... Kf6 {[%clk 0:00:10.8]} 34. b4 {[%clk 0:00:29.2]} 34...
Nd3 {[%clk 0:00:08.4]} 35. Rxe6+ {[%clk 0:00:29.5]} 35... Kf7 {[%clk 0:00:09]}
36. Rh6 {[%clk 0:00:26.3]} 36... Kg7 {[%clk 0:00:09.1]} 37. Nf5+ {[%clk
0:00:25.4]} 37... Kg8 {[%clk 0:00:09.8]} 38. b5 {[%clk 0:00:25.2]} 38... Ne1+
{[%clk 0:00:09.7]} 39. Ke2 {[%clk 0:00:23.7]} 39... Nc2 {[%clk 0:00:10.6]} 40.
Rd6 {[%clk 0:00:21.6]} 40... Rc7 {[%clk 0:00:10.2]} 41. Rc6 {[%clk 0:00:21.4]}
41... Rf7 {[%clk 0:00:09.2]} 42. Nh6+ {[%clk 0:00:21]} 1-0

[Event "Early-Titled-Tuesday-Blitz-May-07-2024"]
[Site "Chess.com"]
[Date "2024.05.07"]
[Round "4"]
[White "Zarinur"]
[Black "ScaccoPaccoMatto"]
[Result "1-0"]
[WhiteElo "2542"]
[BlackElo "2715"]
[TimeControl "180+1"]
[EndTime "8:42:30 PDT"]
[Termination "Zarinur won by resignation"]

1. e4 {[%clk 0:03:00.9]} 1... c6 {[%clk 0:02:59.5]} 2. d4 {[%clk 0:02:56.2]}
2... d5 {[%clk 0:03:00.1]} 3. e5 {[%clk 0:02:49.4]} 3... c5 {[%clk 0:02:59.9]}
4. dxc5 {[%clk 0:02:44.2]} 4... e6 {[%clk 0:03:00.2]} 5. a3 {[%clk 0:02:40.9]}
5... Bxc5 {[%clk 0:03:00.3]} 6. Qg4 {[%clk 0:02:39.6]} 6... g6 {[%clk
0:02:59.6]} 7. b4 {[%clk 0:02:19.1]} 7... Be7 {[%clk 0:02:57.6]} 8. Bb2 {[%clk
0:02:18.4]} 8... a5 {[%clk 0:02:56.8]} 9. b5 {[%clk 0:02:10.8]} 9... Nd7 {[%clk
0:02:56.5]} 10. Bd3 {[%clk 0:01:59.3]} 10... Nc5 {[%clk 0:02:39.3]} 11. Ne2
{[%clk 0:01:58.8]} 11... Bd7 {[%clk 0:02:38.7]} 12. a4 {[%clk 0:01:54.3]} 12...
f5 {[%clk 0:02:38]} 13. Qf3 {[%clk 0:01:47.7]} 13... Nh6 {[%clk 0:02:31.2]} 14.
O-O {[%clk 0:01:44.2]} 14... Nf7 {[%clk 0:02:29.6]} 15. Nd2 {[%clk 0:01:36.2]}
15... O-O {[%clk 0:02:24.3]} 16. Bd4 {[%clk 0:01:23.4]} 16... Qc7 {[%clk
0:02:18.1]} 17. Qe3 {[%clk 0:01:20]} 17... Rac8 {[%clk 0:01:59.4]} 18. Rfc1
{[%clk 0:01:11.5]} 18... f4 {[%clk 0:01:04.3]} 19. Nxf4 {[%clk 0:00:47.4]} 19...
Bg5 {[%clk 0:01:04]} 20. g3 {[%clk 0:00:47.5]} 20... Nh6 {[%clk 0:00:55.3]} 21.
Bxc5 {[%clk 0:00:25.2]} 21... Bxf4 {[%clk 0:00:46.4]} 22. gxf4 {[%clk
0:00:20.1]} 22... Qxc5 {[%clk 0:00:46.5]} 23. c4 {[%clk 0:00:19.8]} 23... Ng4
{[%clk 0:00:43.9]} 24. Qxc5 {[%clk 0:00:14.7]} 24... Rxc5 {[%clk 0:00:44]} 25.
h3 {[%clk 0:00:12.9]} 25... Nh6 {[%clk 0:00:23.2]} 26. Nb3 {[%clk 0:00:12.4]}
26... Rcc8 {[%clk 0:00:20.1]} 27. c5 {[%clk 0:00:10.9]} 27... Rxf4 {[%clk
0:00:20.2]} 28. Nxa5 {[%clk 0:00:11.4]} 28... Rd4 {[%clk 0:00:18.3]} 29. Bf1
{[%clk 0:00:10.2]} 29... Nf7 {[%clk 0:00:09.7]} 30. c6 {[%clk 0:00:07.5]} 30...
bxc6 {[%clk 0:00:09.4]} 31. bxc6 {[%clk 0:00:08.4]} 31... Be8 {[%clk 0:00:10]}
32. c7 {[%clk 0:00:08.5]} 32... Nxe5 {[%clk 0:00:10.2]} 33. Ba6 {[%clk
0:00:08.8]} 33... Bd7 {[%clk 0:00:09.5]} 34. Bxc8 {[%clk 0:00:08.4]} 34... Bxc8
{[%clk 0:00:10.4]} 35. Nc6 {[%clk 0:00:08.4]} 35... Kf7 {[%clk 0:00:10]} 36.
Nxe5+ {[%clk 0:00:08]} 1-0

[Event "Early-Titled-Tuesday-Blitz-May-07-2024"]
[Site "Chess.com"]
[Date "2024.05.07"]
[Round "4"]
[White "BashirovKemal"]
[Black "ccccvhhhj"]
[Result "1/2-1/2"]
[WhiteElo "2684"]
[BlackElo "2490"]
[TimeControl "180+1"]
[EndTime "8:42:32 PDT"]
[Termination "Game drawn by repetition"]

1. e4 {[%clk 0:03:00.9]} 1... e6 {[%clk 0:02:59.5]} 2. d4 {[%clk 0:03:00.9]}
2... d5 {[%clk 0:03:00.4]} 3. Nc3 {[%clk 0:03:01.4]} 3... Bb4 {[%clk 0:03:00.3]}
4. e5 {[%clk 0:03:01.1]} 4... c5 {[%clk 0:03:00.3]} 5. a3 {[%clk 0:03:01.5]}
5... Bxc3+ {[%clk 0:03:01]} 6. bxc3 {[%clk 0:03:02.4]} 6... Ne7 {[%clk
0:03:01.5]} 7. a4 {[%clk 0:03:03.1]} 7... b6 {[%clk 0:02:47]} 8. Nf3 {[%clk
0:03:01.9]} 8... Bb7 {[%clk 0:02:44.6]} 9. Ba3 {[%clk 0:02:57]} 9... Nd7 {[%clk
0:02:44.8]} 10. Bb5 {[%clk 0:02:53.8]} 10... O-O {[%clk 0:02:43.2]} 11. Bxd7
{[%clk 0:02:46.1]} 11... Qxd7 {[%clk 0:02:43.2]} 12. dxc5 {[%clk 0:02:46.6]}
12... Ba6 {[%clk 0:02:33.4]} 13. Nd4 {[%clk 0:02:26.6]} 13... bxc5 {[%clk
0:02:09.3]} 14. Bxc5 {[%clk 0:02:26.3]} 14... Rfc8 {[%clk 0:02:09.7]} 15. Bb4
{[%clk 0:02:10]} 15... Nc6 {[%clk 0:01:57.7]} 16. Nxc6 {[%clk 0:02:07]} 16...
Rxc6 {[%clk 0:01:55.7]} 17. f4 {[%clk 0:02:00.7]} 17... Rc4 {[%clk 0:01:48.7]}
18. Qf3 {[%clk 0:01:47.9]} 18... Re4+ {[%clk 0:01:45.8]} 19. Kd2 {[%clk
0:01:31]} 19... Rc8 {[%clk 0:01:45]} 20. Kc1 {[%clk 0:01:25.5]} 20... Qc6 {[%clk
0:01:35.9]} 21. Qf2 {[%clk 0:00:53.5]} 21... Re2 {[%clk 0:00:58.6]} 22. Qd4
{[%clk 0:00:41.5]} 22... Re4 {[%clk 0:00:54.8]} 23. Qf2 {[%clk 0:00:41.2]} 23...
d4 {[%clk 0:00:31.4]} 24. Re1 {[%clk 0:00:37.5]} 24... Rxe1+ {[%clk 0:00:27.2]}
25. Qxe1 {[%clk 0:00:38.4]} 25... dxc3 {[%clk 0:00:27.6]} 26. Ra3 {[%clk
0:00:39]} 26... Qxg2 {[%clk 0:00:24.1]} 27. Rxc3 {[%clk 0:00:36.1]} 27... Rxc3
{[%clk 0:00:20.3]} 28. Qxc3 {[%clk 0:00:37]} 28... h5 {[%clk 0:00:18.4]} 29. Qd2
{[%clk 0:00:34.3]} 29... Qf1+ {[%clk 0:00:16.7]} 30. Kb2 {[%clk 0:00:32.6]}
30... Qc4 {[%clk 0:00:17.1]} 31. Qd8+ {[%clk 0:00:26.9]} 31... Kh7 {[%clk
0:00:17.2]} 32. Qd3+ {[%clk 0:00:27.4]} 32... Qxd3 {[%clk 0:00:12.6]} 33. cxd3
{[%clk 0:00:28.3]} 33... Bxd3 {[%clk 0:00:13.3]} 34. Kc3 {[%clk 0:00:26.7]}
34... Bf1 {[%clk 0:00:13.3]} 35. Kd4 {[%clk 0:00:26.8]} 35... Kg6 {[%clk
0:00:12.8]} 36. Ke3 {[%clk 0:00:24.8]} 36... Bg2 {[%clk 0:00:12.6]} 37. Bc5
{[%clk 0:00:24.4]} 37... a6 {[%clk 0:00:12.3]} 38. Bf8 {[%clk 0:00:23.6]} 38...
Bc6 {[%clk 0:00:12.4]} 39. a5 {[%clk 0:00:23.8]} 39... Kh7 {[%clk 0:00:09.4]}
40. Be7 {[%clk 0:00:23.3]} 40... Kg6 {[%clk 0:00:09.1]} 41. Bf8 {[%clk
0:00:23.9]} 41... Kh7 {[%clk 0:00:06.6]} 42. Be7 {[%clk 0:00:24.1]} 42... Kg6
{[%clk 0:00:06.1]} 43. Bf8 {[%clk 0:00:24.6]} 1/2-1/2

[Event "Early-Titled-Tuesday-Blitz-May-07-2024"]
[Site "Chess.com"]
[Date "2024.05.07"]
[Round "4"]
[White "tetrix83"]
[Black "masterofpuppets2"]
[Result "1-0"]
[WhiteElo "2670"]
[BlackElo "2464"]
[TimeControl "180+1"]
[EndTime "8:42:32 PDT"]
[Termination "tetrix83 won by resignation"]

1. e4 {[%clk 0:03:00.9]} 1... c6 {[%clk 0:02:59.2]} 2. d4 {[%clk 0:03:00]} 2...
d5 {[%clk 0:03:00.1]} 3. exd5 {[%clk 0:02:59.7]} 3... cxd5 {[%clk 0:03:00.4]} 4.
Bd3 {[%clk 0:02:59.3]} 4... Nc6 {[%clk 0:03:00.5]} 5. c3 {[%clk 0:02:59.5]} 5...
Qc7 {[%clk 0:03:01.2]} 6. h3 {[%clk 0:02:59.2]} 6... e6 {[%clk 0:03:00.6]} 7.
Nf3 {[%clk 0:02:57.9]} 7... Bd6 {[%clk 0:03:01.1]} 8. O-O {[%clk 0:02:58]} 8...
Nge7 {[%clk 0:03:01.7]} 9. b3 {[%clk 0:02:57.6]} 9... Bd7 {[%clk 0:02:57.8]} 10.
Ba3 {[%clk 0:02:56.6]} 10... f6 {[%clk 0:02:49]} 11. c4 {[%clk 0:02:46.4]} 11...
O-O {[%clk 0:02:42.4]} 12. Re1 {[%clk 0:02:22.3]} 12... Rae8 {[%clk 0:02:28]}
13. Bxd6 {[%clk 0:02:18.9]} 13... Qxd6 {[%clk 0:02:27.8]} 14. Nc3 {[%clk
0:02:19.4]} 14... dxc4 {[%clk 0:02:26.9]} 15. bxc4 {[%clk 0:02:14.7]} 15... b6
{[%clk 0:02:14.5]} 16. c5 {[%clk 0:01:47.9]} 16... Qf4 {[%clk 0:01:47.1]} 17.
Re4 {[%clk 0:01:24.1]} 17... Qb8 {[%clk 0:01:45.8]} 18. Bc4 {[%clk 0:01:22.4]}
18... Nd8 {[%clk 0:01:25.5]} 19. d5 {[%clk 0:01:19.5]} 19... bxc5 {[%clk
0:00:49.7]} 20. dxe6 {[%clk 0:01:13.7]} 20... Bc6 {[%clk 0:00:50.1]} 21. Re1
{[%clk 0:01:07.4]} 21... Qb4 {[%clk 0:00:45]} 22. Qd3 {[%clk 0:01:03.6]} 22...
Bxf3 {[%clk 0:00:34.3]} 23. Rab1 {[%clk 0:01:03.4]} 23... Qa3 {[%clk 0:00:23.2]}
24. Qxf3 {[%clk 0:01:00.8]} 24... Ndc6 {[%clk 0:00:21.7]} 25. Rb7 {[%clk
0:00:53.7]} 25... Ne5 {[%clk 0:00:17.4]} 26. Rxe5 {[%clk 0:00:40.9]} 26... fxe5
{[%clk 0:00:18.3]} 27. Qe3 {[%clk 0:00:25.8]} 27... Kh8 {[%clk 0:00:15.8]} 28.
Ne4 {[%clk 0:00:13.3]} 28... Qa4 {[%clk 0:00:08.6]} 29. Bb3 {[%clk 0:00:09.8]}
29... Qd4 {[%clk 0:00:08.8]} 30. Ng5 {[%clk 0:00:06.7]} 30... h6 {[%clk
0:00:07.3]} 31. Nf7+ {[%clk 0:00:06.6]} 31... Kh7 {[%clk 0:00:07.9]} 32. Bc2+
{[%clk 0:00:05.8]} 32... g6 {[%clk 0:00:07.4]} 33. Qxh6+ {[%clk 0:00:05]} 1-0

[Event "Early-Titled-Tuesday-Blitz-May-07-2024"]
[Site "Chess.com"]
[Date "2024.05.07"]
[Round "4"]
[White "schackspelaren"]
[Black "ChelsieMonica"]
[Result "1-0"]
[WhiteElo "2384"]
[BlackElo "2529"]
[TimeControl "180+1"]
[EndTime "8:42:32 PDT"]
[Termination "schackspelaren won by resignation"]

1. d4 {[%clk 0:03:00.9]} 1... Nf6 {[%clk 0:02:58.4]} 2. c4 {[%clk 0:03:00.4]}
2... e6 {[%clk 0:02:58.5]} 3. Nf3 {[%clk 0:02:59.5]} 3... d5 {[%clk 0:02:58.2]}
4. Nc3 {[%clk 0:02:59.1]} 4... Be7 {[%clk 0:02:58.8]} 5. Bf4 {[%clk 0:02:59]}
5... O-O {[%clk 0:02:59.2]} 6. e3 {[%clk 0:02:59.2]} 6... a6 {[%clk 0:02:58.7]}
7. c5 {[%clk 0:02:57.8]} 7... h6 {[%clk 0:02:58.5]} 8. h3 {[%clk 0:02:57]} 8...
Nc6 {[%clk 0:02:58.8]} 9. Qc2 {[%clk 0:02:56.5]} 9... b5 {[%clk 0:02:58.8]} 10.
Bd3 {[%clk 0:02:55.1]} 10... Nb4 {[%clk 0:02:58.2]} 11. Qd2 {[%clk 0:02:54.4]}
11... Nxd3+ {[%clk 0:02:58.5]} 12. Qxd3 {[%clk 0:02:54.9]} 12... Bb7 {[%clk
0:02:59.4]} 13. O-O {[%clk 0:02:54.3]} 13... Ne4 {[%clk 0:02:59.4]} 14. a3
{[%clk 0:02:45.3]} 14... Bc6 {[%clk 0:02:56.6]} 15. b4 {[%clk 0:02:41.5]} 15...
f6 {[%clk 0:02:53.3]} 16. Bh2 {[%clk 0:02:35.3]} 16... Qe8 {[%clk 0:02:52.3]}
17. Nd2 {[%clk 0:02:30.8]} 17... Nxc3 {[%clk 0:02:38.4]} 18. Qxc3 {[%clk
0:02:30.6]} 18... Bd8 {[%clk 0:02:38.3]} 19. Nb3 {[%clk 0:02:25.2]} 19... f5
{[%clk 0:02:36.1]} 20. Be5 {[%clk 0:02:22.5]} 20... Rf7 {[%clk 0:02:35.4]} 21.
Na5 {[%clk 0:02:21.8]} 21... Bf6 {[%clk 0:02:35.7]} 22. f4 {[%clk 0:02:17.6]}
22... Kh7 {[%clk 0:02:33.4]} 23. Kh2 {[%clk 0:02:13.5]} 23... g5 {[%clk
0:02:30]} 24. fxg5 {[%clk 0:02:09.5]} 24... Bxe5+ {[%clk 0:02:29.7]} 25. dxe5
{[%clk 0:02:08.3]} 25... hxg5 {[%clk 0:02:30.4]} 26. Nb3 {[%clk 0:02:07.9]}
26... Rg7 {[%clk 0:02:28.2]} 27. Nd4 {[%clk 0:02:07.9]} 27... g4 {[%clk
0:02:27.5]} 28. hxg4 {[%clk 0:01:58.1]} 28... Rxg4 {[%clk 0:02:28.4]} 29. Rf3
{[%clk 0:01:56.8]} 29... Kg7 {[%clk 0:02:27]} 30. Rh3 {[%clk 0:01:55.4]} 30...
Qd7 {[%clk 0:02:13.1]} 31. Rh1 {[%clk 0:01:49.3]} 31... Rg8 {[%clk 0:02:12.5]}
32. Kg1 {[%clk 0:01:45]} 32... Kf8 {[%clk 0:02:12.8]} 33. R1h2 {[%clk
0:01:45.3]} 33... Ke8 {[%clk 0:02:11.3]} 34. Rh6 {[%clk 0:01:34.6]} 34... R4g6
{[%clk 0:02:04.9]} 35. Rxg6 {[%clk 0:01:33.7]} 35... Rxg6 {[%clk 0:02:05.8]} 36.
Rh8+ {[%clk 0:01:30.8]} 36... Kf7 {[%clk 0:02:04.5]} 37. Qe1 {[%clk 0:01:30]}
37... Rg4 {[%clk 0:01:44.3]} 38. Rh7+ {[%clk 0:01:26.4]} 38... Rg7 {[%clk
0:01:44.2]} 39. Qh4 {[%clk 0:01:24.4]} 39... Rxh7 {[%clk 0:01:31.1]} 40. Qxh7+
{[%clk 0:01:24.1]} 40... Ke8 {[%clk 0:01:31.7]} 41. Qg8+ {[%clk 0:01:21.9]}
41... Ke7 {[%clk 0:01:32.1]} 42. Kf2 {[%clk 0:01:18.4]} 42... Bb7 {[%clk
0:01:19.9]} 43. Kg3 {[%clk 0:01:11.4]} 43... c6 {[%clk 0:01:04.2]} 44. Kf4
{[%clk 0:01:06.9]} 44... Bc8 {[%clk 0:01:03.8]} 45. Qg7+ {[%clk 0:01:05.1]}
45... Kd8 {[%clk 0:01:03.7]} 46. Qxd7+ {[%clk 0:01:05]} 46... Bxd7 {[%clk
0:01:03.7]} 47. Kg5 {[%clk 0:01:05.6]} 47... Ke7 {[%clk 0:01:03.8]} 48. Kg6
{[%clk 0:01:04]} 48... Be8+ {[%clk 0:01:04.2]} 49. Kg7 {[%clk 0:01:04.3]} 49...
Bd7 {[%clk 0:01:05.1]} 50. Ne2 {[%clk 0:01:02.7]} 50... Be8 {[%clk 0:01:05.5]}
51. Nf4 {[%clk 0:01:03]} 51... Bf7 {[%clk 0:01:03.4]} 52. g3 {[%clk 0:00:59.6]}
52... Be8 {[%clk 0:01:01.5]} 53. Nh3 {[%clk 0:00:59.9]} 53... Bh5 {[%clk
0:01:00.5]} 54. Ng5 {[%clk 0:00:59.3]} 54... Be8 {[%clk 0:01:00.4]} 55. Nh7
{[%clk 0:00:51.6]} 55... Bh5 {[%clk 0:00:58.6]} 56. Nf6 {[%clk 0:00:51.9]} 56...
Bf7 {[%clk 0:00:58.4]} 57. g4 {[%clk 0:00:48.8]} 57... Be8 {[%clk 0:00:43.8]}
58. g5 {[%clk 0:00:47.4]} 58... f4 {[%clk 0:00:39.5]} 59. exf4 {[%clk 0:00:47]}
59... d4 {[%clk 0:00:40.4]} 60. g6 {[%clk 0:00:44]} 60... d3 {[%clk 0:00:40.2]}
61. Ne4 {[%clk 0:00:44.3]} 1-0

[Event "Early-Titled-Tuesday-Blitz-May-07-2024"]
[Site "Chess.com"]
[Date "2024.05.07"]
[Round "4"]
[White "Zampronha1971"]
[Black "campochess"]
[Result "1-0"]
[WhiteElo "2465"]
[BlackElo "2158"]
[TimeControl "180+1"]
[EndTime "8:42:34 PDT"]
[Termination "Zampronha1971 won on time"]

1. e4 {[%clk 0:03:00.9]} 1... c5 {[%clk 0:00:32.4]} 2. Nf3 {[%clk 0:02:57.7]}
2... Nc6 {[%clk 0:00:32.5]} 3. d4 {[%clk 0:02:58.3]} 3... cxd4 {[%clk
0:00:32.6]} 4. Nxd4 {[%clk 0:02:59.2]} 4... e5 {[%clk 0:00:32.8]} 5. Nb5 {[%clk
0:02:58.5]} 5... a6 {[%clk 0:00:33]} 6. Nd6+ {[%clk 0:02:58.2]} 6... Bxd6 {[%clk
0:00:33.1]} 7. Qxd6 {[%clk 0:02:58.9]} 7... Qe7 {[%clk 0:00:33.4]} 8. Qxe7+
{[%clk 0:02:58.1]} 8... Ngxe7 {[%clk 0:00:33.5]} 9. Nc3 {[%clk 0:02:57.9]} 9...
d5 {[%clk 0:00:33.5]} 10. exd5 {[%clk 0:02:33.8]} 10... Nb4 {[%clk 0:00:32.1]}
11. Bd3 {[%clk 0:02:27.8]} 11... Nxd3+ {[%clk 0:00:31.5]} 12. cxd3 {[%clk
0:02:27.5]} 12... Bf5 {[%clk 0:00:31.6]} 13. Ke2 {[%clk 0:02:24.9]} 13... Rd8
{[%clk 0:00:30.8]} 14. Be3 {[%clk 0:02:07.9]} 14... O-O {[%clk 0:00:28.9]} 15.
Bc5 {[%clk 0:01:53.4]} 15... Rfe8 {[%clk 0:00:28.1]} 16. Bxe7 {[%clk 0:01:37.6]}
16... Rxe7 {[%clk 0:00:27.9]} 17. Rac1 {[%clk 0:01:35.9]} 17... Red7 {[%clk
0:00:21.1]} 18. f3 {[%clk 0:01:33.4]} 18... h5 {[%clk 0:00:19.1]} 19. Rhe1
{[%clk 0:01:27.9]} 19... b5 {[%clk 0:00:18.9]} 20. a3 {[%clk 0:01:27.6]} 20...
a5 {[%clk 0:00:18.3]} 21. b4 {[%clk 0:01:24.6]} 21... axb4 {[%clk 0:00:17.2]}
22. axb4 {[%clk 0:01:24.3]} 22... h4 {[%clk 0:00:16.6]} 23. Ra1 {[%clk
0:01:21.5]} 23... Rc8 {[%clk 0:00:15.6]} 24. Kd2 {[%clk 0:01:19.7]} 24... Rdc7
{[%clk 0:00:15]} 25. Rec1 {[%clk 0:01:19.6]} 25... Rd7 {[%clk 0:00:14.6]} 26.
Ra5 {[%clk 0:01:16]} 26... Rb7 {[%clk 0:00:13]} 27. Nxb5 {[%clk 0:00:52]} 27...
Rxc1 {[%clk 0:00:11.5]} 28. Kxc1 {[%clk 0:00:51]} 28... Bxd3 {[%clk 0:00:10.4]}
29. Nc3 {[%clk 0:00:33.3]} 29... Rxb4 {[%clk 0:00:10.4]} 30. Kd2 {[%clk
0:00:34]} 30... Rd4 {[%clk 0:00:09.6]} 31. Ke3 {[%clk 0:00:32]} 31... Bc4 {[%clk
0:00:09.4]} 32. Ne4 {[%clk 0:00:21.5]} 32... Rd3+ {[%clk 0:00:09.2]} 33. Kf2
{[%clk 0:00:21.8]} 33... Rb3 {[%clk 0:00:07.6]} 34. d6 {[%clk 0:00:19]} 34... f5
{[%clk 0:00:05.1]} 35. Ng5 {[%clk 0:00:18.1]} 35... Rb2+ {[%clk 0:00:04.7]} 36.
Ke1 {[%clk 0:00:18.1]} 36... Rb7 {[%clk 0:00:01.2]} 37. Ra8+ {[%clk 0:00:16.7]}
1-0

[Event "Early-Titled-Tuesday-Blitz-May-07-2024"]
[Site "Chess.com"]
[Date "2024.05.07"]
[Round "4"]
[White "Yaacovn"]
[Black "h4parah5"]
[Result "1/2-1/2"]
[WhiteElo "2855"]
[BlackElo "3017"]
[TimeControl "180+1"]
[EndTime "8:42:35 PDT"]
[Termination "Game drawn by repetition"]

1. d4 {[%clk 0:03:00.9]} 1... Nf6 {[%clk 0:02:59.8]} 2. e3 {[%clk 0:02:41.8]}
2... g6 {[%clk 0:02:58.8]} 3. Nf3 {[%clk 0:02:42.1]} 3... Bg7 {[%clk 0:02:57.9]}
4. Be2 {[%clk 0:02:42.7]} 4... O-O {[%clk 0:02:58.2]} 5. O-O {[%clk 0:02:43.6]}
5... c5 {[%clk 0:02:57.3]} 6. b3 {[%clk 0:02:43.5]} 6... cxd4 {[%clk 0:02:56.3]}
7. Nxd4 {[%clk 0:02:43.3]} 7... d5 {[%clk 0:02:55.2]} 8. Bb2 {[%clk 0:02:43.7]}
8... Nc6 {[%clk 0:02:49.9]} 9. Nxc6 {[%clk 0:02:40.3]} 9... bxc6 {[%clk
0:02:49.7]} 10. Be5 {[%clk 0:02:39.5]} 10... Bh6 {[%clk 0:02:31.2]} 11. c4
{[%clk 0:02:36.8]} 11... Nd7 {[%clk 0:02:22.4]} 12. Bb2 {[%clk 0:02:33]} 12...
e6 {[%clk 0:02:20.8]} 13. cxd5 {[%clk 0:02:24.9]} 13... cxd5 {[%clk 0:02:20.1]}
14. Qd4 {[%clk 0:02:24.6]} 14... f6 {[%clk 0:02:16.5]} 15. Nc3 {[%clk
0:02:23.3]} 15... Bg7 {[%clk 0:02:14.8]} 16. Nxd5 {[%clk 0:02:07.2]} 16... Bb7
{[%clk 0:02:04]} 17. Nf4 {[%clk 0:01:52.1]} 17... Re8 {[%clk 0:02:03.9]} 18.
Rfd1 {[%clk 0:01:41.6]} 18... Nf8 {[%clk 0:02:01.5]} 19. Qxd8 {[%clk 0:00:59.7]}
19... Raxd8 {[%clk 0:02:02.4]} 20. Rxd8 {[%clk 0:00:57.9]} 20... Rxd8 {[%clk
0:02:03.3]} 21. Rd1 {[%clk 0:00:58.1]} 21... Rxd1+ {[%clk 0:01:54.2]} 22. Bxd1
{[%clk 0:00:59]} 22... e5 {[%clk 0:01:54.4]} 23. Nd3 {[%clk 0:00:56.1]} 23...
Nd7 {[%clk 0:01:52]} 24. Kf1 {[%clk 0:00:43.7]} 24... Kf7 {[%clk 0:01:46.5]} 25.
f3 {[%clk 0:00:44.2]} 25... f5 {[%clk 0:01:40.2]} 26. f4 {[%clk 0:00:36.8]}
26... Ba6 {[%clk 0:01:39.3]} 27. Be2 {[%clk 0:00:33.5]} 27... e4 {[%clk
0:01:13.5]} 28. Ne5+ {[%clk 0:00:33.3]} 28... Bxe5 {[%clk 0:01:07.1]} 29. Bxe5
{[%clk 0:00:23]} 29... Bxe2+ {[%clk 0:01:05.7]} 30. Kxe2 {[%clk 0:00:23.9]}
30... Nxe5 {[%clk 0:01:05.4]} 31. fxe5 {[%clk 0:00:23.7]} 31... Ke6 {[%clk
0:01:06.3]} 32. Kd2 {[%clk 0:00:20.1]} 32... Kxe5 {[%clk 0:01:06.2]} 33. Kc3
{[%clk 0:00:17.7]} 33... g5 {[%clk 0:01:04.4]} 34. g3 {[%clk 0:00:07.4]} 34...
Kd5 {[%clk 0:00:58.6]} 35. a3 {[%clk 0:00:04.9]} 35... a5 {[%clk 0:00:54.5]} 36.
b4 {[%clk 0:00:04.9]} 36... a4 {[%clk 0:00:54.8]} 37. Kd2 {[%clk 0:00:02.4]}
37... Kc4 {[%clk 0:00:54.2]} 38. Kc2 {[%clk 0:00:02.2]} 38... h6 {[%clk
0:00:47.4]} 39. Kd2 {[%clk 0:00:02.4]} 39... Kd5 {[%clk 0:00:47.1]} 40. Ke2
{[%clk 0:00:02.4]} 40... Kc4 {[%clk 0:00:44.3]} 41. Kf2 {[%clk 0:00:02.9]} 41...
Kd3 {[%clk 0:00:34.2]} 42. b5 {[%clk 0:00:01.6]} 42... Kd2 {[%clk 0:00:34.6]}
43. b6 {[%clk 0:00:02]} 43... f4 {[%clk 0:00:35.3]} 44. gxf4 {[%clk 0:00:01.8]}
44... gxf4 {[%clk 0:00:35.3]} 45. b7 {[%clk 0:00:02.7]} 45... fxe3+ {[%clk
0:00:35.6]} 46. Kg2 {[%clk 0:00:03.3]} 46... e2 {[%clk 0:00:35.9]} 47. b8=Q
{[%clk 0:00:04]} 47... e1=Q {[%clk 0:00:36.3]} 48. Qb4+ {[%clk 0:00:04.7]} 48...
Kd1 {[%clk 0:00:36.6]} 49. Qb1+ {[%clk 0:00:04.7]} 49... Kd2 {[%clk 0:00:35.6]}
50. Qb4+ {[%clk 0:00:04.7]} 50... Kd1 {[%clk 0:00:35.1]} 51. Qb1+ {[%clk
0:00:05]} 51... Kd2 {[%clk 0:00:35.3]} 52. Qb4+ {[%clk 0:00:05.2]} 1/2-1/2